fUSD/lending_fUSD_20260304
["ID","MTS","AMOUNT","RATE_DAILY","PERIOD"]
[407669973,1772653832619,-800.0,0.000317,11]
[407669974,1772653832628,-74895.68066531,0.000317,2]
[407669975,1772653832651,-7207.68425379,0.000317,2]
[407669976,1772653832663,-385.00293256,0.000317,2]
[407669977,1772653832676,-303.8818997,0.000317,2]
[407669978,1772653832687,-302.18492085,0.000317,2]
[407669979,1772653832707,-8544.43753357,0.000317,2]
[407669980,1772653832719,-787.13415081,0.000317,2]
[407669981,1772653832730,-422.81516774,0.000317,2]
[407669982,1772653832742,-2769.66149264,0.000317,2]
[407669985,1772653837470,-76755.03773196,0.000317,2]
[407669986,1772653837524,-754.07848955,0.000317,2]
[407669987,1772653837536,-15837.27592586,0.000317,2]
[407669988,1772653837583,-307.92957538,0.000317,2]
[407669989,1772653837618,-29493.9909153,0.000317,2]
[407670000,1772653839940,-275810.35606705,0.000317,2]
[407670001,1772653840046,-53969.44399,0.000317,2]
[407670008,1772653842506,-813.01962224,0.000317,2]
[407670014,1772653842664,-2500.0,0.0003164,2]
[407670017,1772653845554,-4599.60709477,0.000317,2]
[407670018,1772653845592,-178284.62125952,0.000317,2]
[407670019,1772653845605,-876.96608093,0.000317,2]
[407670020,1772653845645,-5690.0006,0.000317,2]
[407670021,1772653845658,-8297.1515,0.000317,2]
[407670029,1772654738931,-353.00928897,0.00013,2]
[407670030,1772654974125,-1694.72265071,0.00013,2]
[407670031,1772654974147,-600.0,0.000143,2]
[407670032,1772654974167,-500.38582798,0.00014373,2]
[407670033,1772654974189,-290.95473975,0.00015988,2]
[407670034,1772654974208,-313.28850225,0.000168,2]
[407670035,1772654974230,-1018.51886924,0.000169,2]
[407670048,1772655031503,-502.26276919,0.00014373,2]
[407670050,1772655031512,-594.25344857,0.000169,2]
[407670052,1772655031525,-387.22768219,0.000169,2]
[407670053,1772655031534,-14.56231781,0.00016999,2]
[407670054,1772655031547,-285.43768219,0.00016999,2]
[407670055,1772655031557,-300.0,0.00016999,2]
[407670056,1772655031567,-226.06703202,0.00017,2]
[407670057,1772655031578,-8811.25653486,0.00017,2]
[407670058,1772655031590,-3076.09408268,0.00017,2]
[407670059,1772655031602,-29202.69483611,0.00017,2]
[407670060,1772655031614,-3856.51391185,0.00017,2]
[407670061,1772655031624,-385.0,0.00017639,2]
[407670062,1772655031634,-3307.672,0.0001764,2]
[407670063,1772655031644,-1565.26874166,0.000179,2]
[407670064,1772655031655,-74.53091823,0.000179,2]
[407670065,1772655031665,-500.0,0.00017999,2]
[407670066,1772655031674,-500.0,0.00017999,2]
[407670067,1772655031683,-500.0,0.00017999,2]
[407670068,1772655031693,-500.0,0.00017999,2]
[407670069,1772655031702,-449.19570714,0.00017999,2]
[407670070,1772655031712,-500.0,0.00017999,2]
[407670071,1772655031722,-500.0,0.00017999,2]
[407670072,1772655031732,-500.0,0.00017999,2]
[407670073,1772655031742,-500.0,0.00017999,2]
[407670074,1772655031751,-15891.17669255,0.00018,2]
[407670075,1772655031763,-1254.41808677,0.00018,2]
[407670076,1772655031779,-19869.02756065,0.00018,2]
[407670078,1772655031791,-4494.85001972,0.00018,2]
[407670086,1772655037690,-346.22909034,0.00018,2]
[407670087,1772655037744,-3185.44864706,0.00018,2]
[407670088,1772655037756,-1528.93154352,0.00018,2]
[407670089,1772655037767,-1612.74800648,0.00018,2]
[407670090,1772655037780,-722.47921805,0.00018,2]
[407670091,1772655037792,-2646.39111327,0.00018,2]
[407670142,1772655039744,-336.030554,0.00018,2]
[407670143,1772655039796,-295.365,0.00018,2]
[407670167,1772655045466,-1084.675,0.00018,2]
[407670173,1772655458981,-490.48231573,0.00012,2]
[407670174,1772655459011,-510.0,0.00014,2]
[407670176,1772656084070,154.5,0.00012943,2]
[407670177,1772656084275,154.5,0.00014119,2]
[407670183,1772656231851,-500.0,0.00014373,2]
[407670184,1772656231861,-154.5,0.00015296,2]
[407670185,1772656231870,-3353.72122173,0.0001581,2]
[407670186,1772656231880,-193.0,0.0001581,2]
[407670187,1772656231890,-470.22066299,0.0001581,2]
[407670188,1772656231900,-154.5,0.00016472,2]
[407670189,1772656231910,-154.5,0.00017649,2]
[407670190,1772656231924,-245.09232585,0.000179,2]
[407670191,1772656231936,-6132.88834136,0.000179,2]
[407670192,1772656231946,-7528.78805694,0.000179,2]
[407670193,1772656231955,-3533.779,0.00017989,2]
[407670194,1772656231964,-271.53,0.00017989,2]
[407670195,1772656231974,-151.0,0.00017989,2]
[407670196,1772656231984,-151.0,0.00017989,2]
[407670197,1772656231994,-151.0,0.00017989,2]
[407670199,1772656232004,-151.0,0.00017989,2]
[407670200,1772656232014,-151.0,0.00017989,2]
[407670201,1772656232023,-151.0,0.00017989,2]
[407670203,1772656232032,-151.0,0.00017989,2]
[407670204,1772656232042,-151.0,0.00017989,2]
[407670205,1772656232051,-151.0,0.00017989,2]
[407670206,1772656232061,-151.0,0.00017989,2]
[407670207,1772656232070,-151.0,0.00017989,2]
[407670208,1772656232080,-12614.0,0.0001799,2]
[407670209,1772656232089,-500.0,0.00017999,2]
[407670210,1772656232100,-500.0,0.00017999,2]
[407670211,1772656232110,-500.0,0.00017999,2]
[407670212,1772656232123,-628.71116505,0.00017999,2]
[407670213,1772656232132,-500.0,0.00017999,2]
[407670214,1772656232143,-500.0,0.00017999,2]
[407670215,1772656232153,-543.88437067,0.00017999,2]
[407670216,1772656232163,-67406.09366019,0.00018,2]
[407670217,1772656232175,-168790.93049093,0.00018,2]
[407670218,1772656232236,-1003.9834,0.00018,2]
[407670219,1772656232256,-685.86632813,0.00018,2]
[407670220,1772656232267,-932.31905122,0.00018,2]
[407670221,1772656237849,-2658.58992814,0.000179,2]
[407670222,1772656237860,-4146.21924636,0.00018,2]
[407670223,1772656237871,-255.81419352,0.00018,2]
[407670224,1772656237883,-258.6,0.00018,2]
[407670225,1772656237895,-383.736,0.00018,2]
[407670226,1772656237907,-728.53320366,0.00018,2]
[407670227,1772656237919,-544.00149876,0.00018,2]
[407670228,1772656237930,-615.21547425,0.00018,2]
[407670229,1772656237942,-145498.38095816,0.00018,2]
[407670230,1772656237970,-845.58340733,0.00018,2]
[407670235,1772656240105,-458.87313864,0.00018,2]
[407670236,1772656240121,-357.17662968,0.00018,2]
[407670237,1772656240226,-5531.30993896,0.00018,2]
[407670238,1772656240555,-130672.8751595,0.00018,2]
[407670239,1772656240565,-3641.64899239,0.00018,2]
[407670240,1772656240575,-200.0,0.00018,2]
[407670241,1772656240585,-200.0,0.00018,2]
[407670242,1772656240595,-200.0,0.00018,2]
[407670243,1772656240605,-200.0,0.00018,2]
[407670244,1772656240614,-200.0,0.00018,2]
[407670247,1772656240624,-200.0,0.00018,2]
[407670248,1772656240634,-200.0,0.00018,2]
[407670249,1772656240644,-199.96,0.00018,2]
[407670250,1772656240654,-271.53,0.00018263,2]
[407670251,1772656240665,-271.53,0.00018537,2]
[407670252,1772656240675,-271.53,0.00018811,2]
[407670253,1772656240685,-154.5,0.00018826,2]
[407670254,1772656240696,-271.54811415,0.00019085,2]
[407670255,1772656240705,-154.5,0.00020002,2]
[407670256,1772656240716,-626.24465173,0.00020508,2]
[407670257,1772656240725,-572.0,0.00020852,2]
[407670258,1772656240735,-7528.78805691,0.00020956,2]
[407670259,1772656240745,-154.5,0.00021179,2]
[407670260,1772656240756,-1000.0,0.0002119,2]
[407670261,1772656240765,-6377.98066719,0.00021972,2]
[407670262,1772656240778,-154.5,0.00022355,2]
[407670263,1772656240788,-177.91,0.00022676,2]
[407670264,1772656240797,-2000.0,0.000227,2]
[407670265,1772656240807,-20929.7521135,0.00023,2]
[407670266,1772656240816,-7632.2388071,0.00023,2]
[407670267,1772656240826,-1500.0,0.00023288,2]
[407670268,1772656240835,-3756.0,0.000233,5]
[407670269,1772656240845,-154.5,0.00023532,2]
[407670270,1772656240855,-173.67,0.00023662,2]
[407670271,1772656240865,-200.0,0.0002382,2]
[407670272,1772656240875,-1000.0,0.00023839,2]
[407670273,1772656240884,-7528.78805691,0.00024011,2]
[407670275,1772656240894,-154.5,0.00024709,2]
[407670276,1772656240904,-3240.0,0.00025702,2]
[407670277,1772656240913,-154.5,0.00025885,2]
[407670278,1772656240923,-6377.98066719,0.00026044,2]
[407670279,1772656240933,-1041.0,0.00026138,2]
[407670280,1772656240942,-413.0,0.00026138,2]
[407670281,1772656240952,-700.34,0.00026238,2]
[407670282,1772656240962,-2000.0,0.000264,2]
[407670283,1772656240973,-166.66,0.0002645,2]
[407670284,1772656240984,-1000.0,0.00026488,2]
[407670285,1772656240995,-777.033351,0.00026489,2]
[407670286,1772656241005,-150.0,0.00026941,2]
[407670287,1772656241016,-7528.78805691,0.00027067,2]
[407670288,1772656241029,-1082.24,0.00027094,30]
[407670289,1772656241039,-1724.91,0.00027125,2]
[407670290,1772656241049,-1500.0,0.00027144,120]
[407670291,1772656241059,-500.0,0.00027164,2]
[407670292,1772656241069,-150.0,0.00027249,2]
[407670293,1772656241078,-166.66,0.00027324,2]
[407670294,1772656241087,-261.42,0.00027397,2]
[407670295,1772656241096,-1824.43,0.00027468,2]
[407670296,1772656241106,-150.0,0.000277,14]
[407670297,1772656241116,-1724.91,0.00027803,2]
[407670298,1772656241126,-426.0,0.00028,7]
[407670299,1772656241136,-166.66,0.00028197,2]
[407670300,1772656241145,-1724.91,0.00028481,2]
[407670301,1772656241155,-310.0,0.00028694,10]
[407670302,1772656241164,-331.0,0.00028694,10]
[407670303,1772656241174,-275.0289254,0.0002886,2]
[407670304,1772656241183,-435.02,0.00028996,20]
[407670305,1772656241193,-166.66,0.00029059,30]
[407670306,1772656241202,-166.66,0.0002907,2]
[407670307,1772656241212,-310.27,0.000291,14]
[407670308,1772656241221,-495.84,0.00029121,2]
[407670309,1772656241231,-1000.0,0.00029137,2]
[407670310,1772656241250,-395.03,0.00029138,2]
[407670311,1772656241264,-1724.91,0.0002916,2]
[407670312,1772656241279,-166.66,0.00029671,30]
[407670313,1772656241294,-500.0,0.00029799,30]
[407670314,1772656241309,-35776.98018075,0.000298,7]
[407670315,1772656241324,-3641.64899239,0.000298,2]
[407670316,1772656241340,-1724.91,0.00029838,2]
[407670317,1772656241355,-300.0,0.000299,10]
[407670318,1772656241368,-166.66,0.00029943,2]
[407670319,1772656241383,-1082.24,0.00030029,30]
[407670320,1772656241398,-151.0,0.00030087,7]
[407670321,1772656241413,-200.0,0.00030097,2]
[407670322,1772656241429,-2000.0,0.000301,2]
[407670323,1772656241444,-150.0,0.00030112,2]
[407670324,1772656241459,-6377.98066719,0.00030116,2]
[407670325,1772656241472,-7528.78805691,0.00030122,2]
[407670326,1772656241487,-166.66,0.00030283,30]
[407670327,1772656241501,-160.0,0.00030466,2]
[407670328,1772656241516,-670.43371908,0.0003064,2]
[407670329,1772656241529,-191.14277774,0.00030677,30]
[407670330,1772656241543,-1000.0,0.00030741,2]
[407670331,1772656241560,-721.12765535,0.00030741,2]
[407670332,1772656241574,-500.0,0.00030741,2]
[407670333,1772656241588,-500.0,0.00030741,2]
[407670334,1772656241601,-500.0,0.00030741,2]
[407670335,1772656241612,-500.0,0.00030741,2]
[407670336,1772656241625,-500.0,0.00030741,2]
[407670337,1772656241640,-500.0,0.00030741,2]
[407670338,1772656241654,-500.0,0.00030741,2]
[407670339,1772656241667,-500.0,0.00030741,2]
[407670340,1772656241680,-500.0,0.00030741,2]
[407670341,1772656241694,-500.0,0.00030741,2]
[407670342,1772656241708,-500.0,0.00030741,2]
[407670343,1772656241719,-222.04159724,0.00030741,2]
[407670344,1772656241730,-693.3919763,0.00030741,2]
[407670345,1772656241743,-500.0,0.00030741,2]
[407670346,1772656241755,-500.0,0.00030741,2]
[407670347,1772656241770,-500.0,0.00030741,2]
[407670348,1772656241783,-500.0,0.00030741,2]
[407670349,1772656241795,-500.0,0.00030741,2]
[407670350,1772656241808,-500.0,0.00030741,2]
[407670351,1772656241820,-500.0,0.00030741,2]
[407670352,1772656241832,-500.0,0.00030741,2]
[407670353,1772656241844,-500.0,0.00030741,2]
[407670354,1772656241856,-500.0,0.00030741,2]
[407670355,1772656241868,-500.0,0.00030741,2]
[407670356,1772656241880,-329.57420447,0.00030795,2]
[407670357,1772656241892,-296.56632578,0.00030795,2]
[407670358,1772656241904,-719.04747942,0.00030796,2]
[407670359,1772656241916,-166.66,0.00030816,2]
[407670360,1772656241928,-3580.67,0.00030822,2]
[407670361,1772656241941,-745.65223616,0.00030851,2]
[407670362,1772656241953,-166.66,0.00030895,30]
[407670363,1772656241965,-7045.86,0.00030895,2]
[407670364,1772656241977,-773.2413689,0.00030906,2]
[407670365,1772656241989,-801.85129955,0.00030961,2]
[407670366,1772656242001,-1200.0,0.00030982,14]
[407670367,1772656242013,-900.0,0.00030982,14]
[407670368,1772656242025,-10493.91917835,0.00031,10]
[407670369,1772656242037,-2451.39193672,0.00031,30]
[407670370,1772656242049,-831.51979763,0.00031016,2]
[407670371,1772656242061,-862.28603014,0.00031071,2]
[407670372,1772656242073,-894.19061326,0.00031126,2]
[407670373,1772656242085,-927.27566595,0.00031181,2]
[407670374,1772656242098,-961.58486559,0.00031236,2]
[407670375,1772656242110,-1200.0,0.00031256,14]
[407670376,1772656242122,-1000.0,0.00031289,2]
[407670377,1772656242134,-997.16350561,0.00031291,2]
[407670378,1772656242146,-2785.0,0.00031458,5]
[407670379,1772656242160,-5000.0,0.00031458,2]
[407670380,1772656242172,-151.0,0.00031458,7]
[407670381,1772656242184,-151.0,0.00031458,7]
[407670382,1772656242197,-151.0,0.00031458,7]
[407670383,1772656242209,-151.0,0.00031458,7]
[407670384,1772656242222,-210.149804,0.00031458,7]
[407670385,1772656242235,-631.17549775,0.00031495,2]
[407670386,1772656242247,-166.66,0.00031506,30]
[407670387,1772656242260,-151.0,0.00031546,7]
[407670388,1772656242273,-569.98,0.00031549,120]
[407670389,1772656242285,-569.98,0.00031549,120]
[407670390,1772656242297,-569.98,0.00031549,120]
[407670391,1772656242309,-569.98,0.00031549,120]
[407670392,1772656242322,-569.98,0.00031549,120]
[407670393,1772656242334,-569.98,0.00031549,120]
[407670394,1772656242347,-569.98,0.00031549,120]
[407670395,1772656242359,-569.98,0.00031549,120]
[407670396,1772656242373,-569.98,0.00031549,120]
[407670397,1772656242387,-569.98,0.00031549,120]
[407670398,1772656242399,-2598.99887,0.00031549,7]
[407670399,1772656242412,-2598.99887,0.00031549,7]
[407670400,1772656242424,-2598.99887,0.00031549,7]
[407670401,1772656242437,-2598.99887,0.00031549,7]
[407670402,1772656242449,-24824.26950627,0.0003155,2]
[407670403,1772656242463,-3641.64899239,0.0003155,2]
[407670404,1772656242475,-3641.64899239,0.0003155,2]
[407670405,1772656242488,-3641.64899239,0.0003155,2]
[407670406,1772656242501,-3641.64899239,0.0003155,2]
[407670407,1772656242515,-3641.64899239,0.0003155,2]
[407670408,1772656242530,-3641.64899239,0.0003155,2]
[407670409,1772656242540,-2539.79914481,0.0003155,2]
[407670410,1772656242549,-2438.66,0.000316,7]
[407670412,1772656242560,-8325.9,0.000316,7]
[407670413,1772656242570,-2802.0,0.000316,3]
[407670414,1772656242579,-1661.0,0.00031604,120]
[407670415,1772656242588,-150.0,0.00031604,3]
[407670416,1772656242598,-3427845.92814594,0.000317,2]
[407670417,1772656242612,-692.31626454,0.000317,2]
[407670419,1772656242625,-3320.02797806,0.000317,2]
[407670420,1772656242887,-6472.45549387,0.000317,2]
[407670421,1772656242899,-2690.68394261,0.000317,2]
[407670429,1772656244229,-1988.8604776,0.00020956,2]
[407670434,1772656244288,-669.72945047,0.00020956,2]
[407670435,1772656244299,-150.0,0.00024658,2]
[407670436,1772656244310,-146106.52314725,0.000317,2]
[407670437,1772656244319,-4599.60709488,0.000317,2]
[407670438,1772656244329,-81129.76013548,0.000317,2]
[407670439,1772656244406,-90.16927491,0.000317,2]
[407670440,1772656244427,-3756.03655468,0.000317,2]
[407670441,1772656244513,-190503.94752961,0.000317,2]
[407670498,1772656245755,-824.0,0.000317,2]
[407670499,1772656245767,-595.56076077,0.000317,2]
[407670500,1772656245977,-2498.7,0.000317,2]
[407670501,1772656245988,-418.680849,0.000317,2]
[407670502,1772656246000,-371.52533801,0.000317,2]
[407670503,1772656246105,-924.07803086,0.000317,2]
[407670504,1772656246120,-421.56794058,0.000317,2]
[407670505,1772656246132,-770.5,0.000317,2]
[407670507,1772656246151,-657.92929977,0.000317,2]
[407670549,1772656611044,-346.22909034,0.00017898,2]
[407670550,1772656611073,-1290.72799421,0.00017899,2]
[407670551,1772656611105,-526.0858309,0.00017998,2]
[407670552,1772656611133,-346.22909034,0.00017998,2]
[407670553,1772656611148,-327.68507876,0.00017998,2]
[407670554,1772656611158,-196.0,0.00017998,2]
[407670555,1772656611168,-150.0,0.00017998,2]
[407670556,1772656611177,-300.0,0.00017998,2]
[407670557,1772656611187,-317.04291545,0.00017999,2]
[407670558,1772656611228,-182.95708455,0.00017999,2]
[407670559,1772656611237,-500.0,0.00017999,2]
[407670560,1772656611247,-281.11,0.000216,2]
[407670564,1772657431849,-387.6034373,0.00017999,2]
[407670565,1772657431861,-112.3965627,0.00017999,2]
[407670566,1772657431871,-500.0,0.00017999,2]
[407670567,1772657431880,-132.33382422,0.00017999,2]
[407670568,1772657431906,-367.66617578,0.00017999,2]
[407670569,1772657431915,-500.0,0.00017999,2]
[407670570,1772657431925,-138.70333737,0.00018899,2]
[407670571,1772657431936,-111.29666263,0.00018899,2]
[407670572,1772657431946,-574.69791141,0.00019799,2]
[407670573,1772657431958,-719.62920142,0.00019799,2]
[407670574,1772657431969,-871.25813901,0.00019799,2]
[407670575,1772657431979,-250.0,0.00019799,2]
[407670576,1772657431988,-166.66,0.00022479,30]
[407670577,1772657431998,-166.66,0.00022952,30]
[407670578,1772657432008,-166.66,0.00023426,30]
[407670579,1772657432017,-166.66,0.00023899,30]
[407670581,1772657432027,-254.5004,0.00023911,2]
[407670582,1772657432036,-166.66,0.00024372,30]
[407670583,1772657432046,-166.66,0.00024845,30]
[407670584,1772657432056,-2000.0,0.00026,2]
[407670585,1772657432065,-1691.4677225,0.00026326,2]
[407670586,1772657432075,-480.0,0.00026687,2]
[407670588,1772657432085,-707.66,0.00026688,2]
[407670590,1772657432095,-1212.0,0.00026766,2]
[407670591,1772657432105,-150.0,0.000285,14]
[407670608,1772657432335,-2000.0,0.0002931,120]
[407670609,1772657432351,-1000.0,0.0002936,20]
[407670610,1772657432361,-200.0,0.00029401,2]
[407670611,1772657432371,-992.0,0.00029647,10]
[407670612,1772657432381,-928.0,0.00029647,10]
[407670613,1772657432390,-1469.0,0.000297,2]
[407670614,1772657432400,-500.0,0.00029837,120]
[407670615,1772657432410,-291.80094519,0.00029837,30]
[407670616,1772657432419,-172.19,0.000299,14]
[407670617,1772657432430,-1000.0,0.0003,2]
[407670618,1772657432440,-693.3919763,0.00030219,2]
[407670619,1772657432449,-719.04747942,0.00030274,2]
[407670620,1772657432459,-745.65223616,0.00030329,2]
[407670621,1772657432468,-183.9,0.00030339,120]
[407670622,1772657432478,-773.2413689,0.00030384,2]
[407670623,1772657432487,-801.85129955,0.00030439,2]
[407670624,1772657432496,-831.51979763,0.00030494,2]
[407670625,1772657432506,-862.28603014,0.00030549,2]
[407670626,1772657432517,-894.19061326,0.00030604,2]
[407670627,1772657432527,-927.27566595,0.00030659,2]
[407670628,1772657432537,-961.58486559,0.00030714,2]
[407670629,1772657432546,-500.0,0.00030735,2]
[407670630,1772657432555,-997.16350561,0.00030769,2]
[407670631,1772657432565,-1000.0,0.0003086,2]
[407670632,1772657432575,-700.0,0.00030982,14]
[407670633,1772657432584,-270.0,0.00031043,2]
[407670634,1772657432594,-3533.83055435,0.00031254,2]
[407670635,1772657432603,-1200.0,0.00031256,14]
[407670636,1772657432613,-1100.0,0.00031256,14]
[407670637,1772657432623,-271.0,0.00031414,2]
[407670638,1772657432632,-2500.0,0.00031532,2]
[407670639,1772657432642,-2126.87194251,0.00031541,2]
[407670640,1772657432653,-3875.92823676,0.000316,2]
[407670641,1772657432663,-300.0,0.000316,11]
[407670642,1772657432672,-3188.99033363,0.000316,2]
[407670643,1772657432681,-1084.773958,0.000316,2]
[407670644,1772657432697,-999.99999901,0.000316,2]
[407670645,1772657432706,-3310.461,0.00031605,29]
[407670646,1772657432715,-20403.0,0.00031616,2]
[407670647,1772657432725,-451.17,0.00031631,10]
[407670648,1772657432737,-375.97,0.00031631,10]
[407670649,1772657432747,-313.31,0.00031631,10]
[407670650,1772657432758,-6577.74219167,0.00031632,3]
[407670651,1772657432767,-394.31177017,0.00031632,2]
[407670652,1772657432777,-500.0,0.00031641,2]
[407670653,1772657432787,-500.0,0.00031641,2]
[407670654,1772657432796,-500.0,0.00031641,2]
[407670655,1772657432806,-500.0,0.00031641,2]
[407670656,1772657432816,-500.0,0.00031641,2]
[407670657,1772657432826,-500.0,0.00031641,2]
[407670658,1772657432836,-500.0,0.00031641,2]
[407670659,1772657432846,-500.0,0.00031641,2]
[407670660,1772657432856,-500.0,0.00031641,2]
[407670661,1772657432865,-351.48460979,0.00031641,2]
[407670662,1772657432874,-500.0,0.00031641,2]
[407670663,1772657432884,-500.0,0.00031641,2]
[407670664,1772657432893,-500.0,0.00031641,2]
[407670665,1772657432902,-500.0,0.00031641,2]
[407670666,1772657432912,-500.0,0.00031641,2]
[407670667,1772657432922,-500.0,0.00031641,2]
[407670668,1772657432932,-500.0,0.00031641,2]
[407670669,1772657432942,-500.0,0.00031641,2]
[407670670,1772657432952,-500.0,0.00031641,2]
[407670671,1772657432961,-500.0,0.00031641,2]
[407670672,1772657432970,-500.0,0.00031641,2]
[407670673,1772657432980,-500.0,0.00031641,2]
[407670674,1772657432989,-500.0,0.00031641,2]
[407670675,1772657432999,-500.0,0.00031641,2]
[407670676,1772657433010,-500.0,0.00031641,2]
[407670677,1772657433021,-500.0,0.00031641,2]
[407670678,1772657433030,-500.0,0.00031641,2]
[407670679,1772657433039,-500.0,0.00031641,2]
[407670680,1772657433050,-500.0,0.00031641,2]
[407670681,1772657433060,-500.0,0.00031641,2]
[407670682,1772657433070,-500.0,0.00031641,2]
[407670683,1772657433080,-322.00384543,0.00031641,2]
[407670684,1772657433089,-500.0,0.00031641,2]
[407670685,1772657433099,-500.0,0.00031641,2]
[407670686,1772657433108,-500.0,0.00031641,2]
[407670687,1772657433118,-500.0,0.00031641,2]
[407670688,1772657433127,-500.0,0.00031641,2]
[407670689,1772657433138,-500.0,0.00031641,2]
[407670690,1772657433148,-500.0,0.00031641,2]
[407670691,1772657433157,-500.0,0.00031641,2]
[407670692,1772657433167,-500.0,0.00031641,2]
[407670693,1772657433177,-500.0,0.00031641,2]
[407670694,1772657433186,-500.0,0.00031641,2]
[407670695,1772657433195,-500.0,0.00031641,2]
[407670696,1772657433204,-500.0,0.00031641,2]
[407670697,1772657433214,-500.0,0.00031641,2]
[407670698,1772657433223,-500.0,0.00031641,2]
[407670699,1772657433233,-500.0,0.00031641,2]
[407670700,1772657433242,-500.0,0.00031641,2]
[407670701,1772657433251,-500.0,0.00031641,2]
[407670702,1772657433260,-500.0,0.00031641,2]
[407670703,1772657433272,-500.0,0.00031641,2]
[407670704,1772657433281,-500.0,0.00031641,2]
[407670705,1772657433290,-500.0,0.00031641,2]
[407670706,1772657433300,-230.70194312,0.00031641,2]
[407670707,1772657433309,-270.41056766,0.00031641,2]
[407670708,1772657433318,-500.0,0.00031641,2]
[407670709,1772657433327,-500.0,0.00031641,2]
[407670710,1772657433336,-500.0,0.00031641,2]
[407670711,1772657433345,-500.0,0.00031641,2]
[407670712,1772657433355,-500.0,0.00031641,2]
[407670713,1772657433364,-500.0,0.00031641,2]
[407670714,1772657433374,-500.0,0.00031641,2]
[407670715,1772657433383,-500.0,0.00031641,2]
[407670716,1772657433392,-500.0,0.00031641,2]
[407670717,1772657433402,-500.0,0.00031641,2]
[407670718,1772657433411,-500.0,0.00031641,2]
[407670719,1772657433421,-332.20038454,0.00031641,2]
[407670720,1772657433430,-500.0,0.00031641,2]
[407670721,1772657433442,-2687.0,0.00031642,5]
[407670722,1772657433451,-150.0,0.00031642,2]
[407670723,1772657433460,-53519.92189725,0.00031642,2]
[407670724,1772657433474,-36982.73652499,0.00031642,2]
[407670725,1772657433485,-3381.92323334,0.00031642,2]
[407670726,1772657433496,-18404.33150997,0.00031642,2]
[407670727,1772657433540,-8305.75708455,0.00031642,2]
[407670728,1772657433554,-7382.376725,0.00031642,2]
[407670729,1772657433568,-2561.15035439,0.00031642,2]
[407670730,1772657433594,-574.46858968,0.00031642,2]
[407670731,1772657433605,-7167.07226802,0.00031642,2]
[407670732,1772657433616,-595.51496788,0.00031642,2]
[407670733,1772657433634,-2622.89306983,0.00031642,2]
[407670734,1772657433645,-3822.49805973,0.00031642,2]
[407670735,1772657433656,-510.0,0.00031642,2]
[407670736,1772657433667,-720.22605909,0.00031642,2]
[407670737,1772657433679,-444.12863538,0.00031642,2]
[407670738,1772657433691,-1027.11678612,0.00031642,2]
[407670740,1772657438097,-1212.0,0.00029766,2]
[407670741,1772657438108,-60713.79109937,0.00031642,2]
[407670742,1772657438119,-419.78922373,0.00031642,2]
[407670743,1772657438130,-18275.13788187,0.00031642,2]
[407670763,1772657440419,-170704.00637878,0.00031642,2]
[407670764,1772657440603,-4386.02600372,0.00031642,2]
[407670785,1772657445075,-251.8,0.000285,14]
[407670786,1772657445085,-570.0,0.00031642,30]
[407670787,1772657445094,-312.67,0.00031642,2]
[407670788,1772657445131,-736.00102635,0.00031642,2]
[407670789,1772657445142,-4377.27067227,0.00031642,2]
[407670790,1772657445198,-161.45676291,0.00031642,2]
[407670791,1772657445209,-989.29856,0.00031642,2]
[407670795,1772657445884,-1277.18183177,0.00031642,2]